bitfinex-derivatives/quotes_BTCF0:USTF0_20241009
["timestamp","ask_amount","ask_price","bid_price","bid_amount"]
[1728481575777,0.080839,61897.0,61891.0,0.080847]
[1728481576006,0.200839,61897.0,61890.0,0.002]
[1728481576184,0.200839,61897.0,61892.0,0.080845]
[1728481577292,0.200839,61897.0,61891.0,0.006]
[1728481577293,0.28,61894.0,61891.0,0.006]
[1728481577485,0.080846,61892.0,61891.0,0.006]
[1728481577679,0.200846,61892.0,61891.0,0.006]
[1728481578070,0.200846,61892.0,61887.0,0.0549]
[1728481578292,0.08085,61890.0,61887.0,0.0549]
[1728481578482,0.11,61890.0,61887.0,0.0549]
[1728481578687,0.11,61890.0,61889.0,0.08085]
[1728481578902,0.3608,61892.0,61891.0,0.080847]
[1728481579378,0.4808,61892.0,61891.0,0.080847]
[1728481579614,0.12,61892.0,61891.0,0.080847]
[1728481580201,0.121,61892.0,61891.0,0.086847]
[1728481580578,0.121,61892.0,61891.0,0.006]
[1728481581098,0.201846,61892.0,61891.0,0.006]
[1728481581997,0.201846,61892.0,61887.0,0.0549]
[1728481581998,0.080851,61888.0,61887.0,0.0549]
[1728481582175,0.841651,61888.0,61887.0,0.0549]
[1728481582388,0.4808,61888.0,61887.0,0.0549]
[1728481582591,0.12,61888.0,61887.0,0.135753]
[1728481583583,0.128,61888.0,61887.0,0.135753]
[1728481584482,0.128,61888.0,61887.0,0.0549]
[1728481584885,0.488851,61888.0,61887.0,0.0549]
[1728481585880,0.208851,61888.0,61887.0,0.0549]
[1728481586085,0.128,61888.0,61887.0,0.415753]
[1728481586482,0.128,61888.0,61887.0,0.135753]
[1728481586699,0.128,61888.0,61887.0,0.0549]
[1728481587025,0.008,61888.0,61887.0,0.496553]
[1728481587781,0.128,61888.0,61887.0,0.496553]
[1728481588479,0.128,61888.0,61887.0,0.4157]
[1728481588680,0.208851,61888.0,61887.0,0.4157]
[1728481589286,0.208851,61888.0,61887.0,0.0549]
[1728481589615,0.128,61888.0,61887.0,0.0549]
[1728481590892,0.208851,61888.0,61887.0,0.0549]
[1728481591088,0.128,61888.0,61887.0,0.0549]
[1728481591308,0.128,61888.0,61887.0,0.135753]
[1728481592601,0.28,61909.0,61887.0,0.53966]
[1728481592818,0.28,61909.0,61897.0,0.080839]
[1728481592819,0.080834,61901.0,61897.0,0.080839]
[1728481593105,0.190834,61901.0,61898.0,0.080838]
[1728481593319,0.190834,61901.0,61897.0,0.080839]
[1728481593594,0.190834,61901.0,61898.0,0.080838]
[1728481593799,0.11,61901.0,61889.0,0.0751]
[1728481593995,0.11,61901.0,61890.0,0.080848]
[1728481594192,0.080836,61900.0,61895.0,0.080841]
[1728481594394,0.11,61900.0,61889.0,0.0751]
[1728481594897,0.080839,61898.0,61889.0,0.0751]
[1728481595098,0.11,61898.0,61895.0,0.080842]
[1728481595396,0.080846,61893.0,61890.0,0.080848]
[1728481595584,0.200846,61893.0,61890.0,0.080848]
[1728481595996,0.080848,61891.0,61887.0,0.135751]
[1728481596198,0.08085,61890.0,61887.0,0.135751]
[1728481596406,0.12,61890.0,61887.0,0.0549]
[1728481596595,0.080851,61888.0,61887.0,0.0549]
[1728481596902,0.200851,61888.0,61887.0,0.0549]
[1728481597289,0.12,61888.0,61887.0,0.0549]
[1728481597696,0.12,61888.0,61887.0,0.0559]
[1728481597893,0.12,61888.0,61887.0,0.136753]
[1728481598191,0.126,61888.0,61887.0,0.136753]
[1728481599421,0.6408,61895.0,61887.0,0.136753]
[1728481599422,0.00088,61895.0,61894.0,0.080843]
[1728481599619,0.15211594,61895.0,61894.0,0.080843]
[1728481599923,0.4325,61911.0,61894.0,0.080843]
[1728481599924,0.3608,61911.0,61894.0,0.080843]
[1728481600093,0.3608,61911.0,61898.0,0.080838]
[1728481600094,0.080829,61906.0,61898.0,0.080838]
[1728481600292,0.11226436,61905.0,61897.0,0.6408]
[1728481600493,0.11225938,61904.0,61897.0,0.6408]
[1728481600719,0.03142838,61903.0,61902.0,0.080833]
[1728481600898,0.14142838,61903.0,61902.0,0.080833]
[1728481601318,0.3608,61911.0,61902.0,0.360833]
[1728481601504,0.3608,61911.0,61909.0,0.080824]
[1728481601505,0.03159423,61910.0,61909.0,0.080824]
[1728481601811,0.00242433,61912.0,61911.0,0.080821]
[1728481602207,0.441606,61923.0,61919.0,0.08081]
[1728481602401,0.03219474,61922.0,61920.0,0.080808]
[1728481602602,0.1,61922.0,61921.0,0.080808]
[1728481602830,0.080801,61927.0,61919.0,0.28]
[1728481603016,0.03248362,61926.0,61924.0,0.080803]
[1728481603235,0.3608,61931.0,61929.0,0.080798]
[1728481603426,0.03257512,61930.0,61929.0,0.080798]
[1728481603621,0.12,61930.0,61929.0,0.080798]
[1728481603802,0.3608,61931.0,61930.0,0.080796]
[1728481604498,0.3648,61931.0,61930.0,0.080796]
[1728481604698,0.004,61931.0,61930.0,0.080796]
[1728481606122,0.080791,61934.0,61930.0,0.080796]
[1728481606583,0.080791,61934.0,61929.0,0.1424]
[1728481606584,0.0038,61956.0,61955.0,0.080764]
[1728481606738,0.00096001,61956.0,61955.0,0.721564]
[1728481606938,0.3608,61973.0,61955.0,0.6408]
[1728481606939,0.3608,61963.0,61955.0,0.6408]
[1728481607120,0.0696,61972.0,61955.0,0.6408]
[1728481607121,1.5,61972.0,61962.0,0.6408]
[1728481607425,0.080745,61970.0,61967.0,0.28]
[1728481608117,1.5,61972.0,61970.0,0.080744]
[1728481608410,1.580742,61972.0,61967.0,0.28]
[1728481608608,1.580742,61972.0,61968.0,0.080747]
[1728481608814,1.5,61972.0,61968.0,0.080747]
[1728481609375,1.5,61972.0,61969.0,0.080744]
[1728481609626,0.3608,61981.0,61967.0,0.28]
[1728481609627,0.080731,61980.0,61971.0,0.3608]
[1728481609833,0.080731,61980.0,61977.0,0.080735]
[1728481610048,0.3608,61981.0,61977.0,0.080735]
[1728481610049,1.5,61979.0,61977.0,0.080735]
[1728481610234,0.3608,61981.0,61980.0,0.080731]
[1728481610416,0.3608,61981.0,61980.0,0.360731]
[1728481610823,0.3608,61981.0,61980.0,0.28]
[1728481611013,0.08073,61981.0,61980.0,0.28]
[1728481611725,0.441528,61983.0,61980.0,0.28]
[1728481611928,0.190728,61983.0,61980.0,0.360731]
[1728481612116,0.080729,61982.0,61980.0,0.28]
[1728481612308,0.08073,61981.0,61980.0,0.28]
[1728481613316,0.18073,61981.0,61980.0,0.281]
[1728481613507,0.114,61981.0,61980.0,0.282]
[1728481614023,0.19473,61981.0,61980.0,0.282]
[1728481614421,0.114,61981.0,61980.0,0.282]
[1728481614634,0.114,61981.0,61980.0,0.362731]
[1728481614834,0.014,61981.0,61980.0,0.362731]
[1728481615446,0.014,61981.0,61980.0,0.723531]
[1728481616210,0.080723,61987.0,61982.0,0.080727]
[1728481616719,0.3608,61984.0,61980.0,0.00364]
[1728481616909,0.1,61984.0,61980.0,0.002]
[1728481617219,0.08173,61981.0,61980.0,0.001]
[1728481617408,0.101,61981.0,61976.0,0.360736]
[1728481617607,0.080734,61978.0,61976.0,0.080736]
[1728481617818,0.080736,61977.0,61972.0,0.08074]
[1728481618124,0.180736,61977.0,61973.0,0.080739]
[1728481618943,0.612358,61990.0,61989.0,0.080719]
[1728481618944,0.00084,61990.0,61989.0,0.080719]
[1728481619121,0.00242075,61995.0,61989.0,0.27993158]
[1728481619433,0.11242075,61995.0,61994.0,0.080713]
[1728481619815,0.11242075,61995.0,61989.0,0.27993158]
[1728481620013,0.11242075,61995.0,61986.0,0.3608]
[1728481620214,0.19313275,61995.0,61987.0,0.080722]
[1728481620521,0.19313275,61995.0,61993.0,0.080714]
[1728481620714,0.12642075,61995.0,61994.0,0.082713]
[1728481620931,1.51474232,62002.0,61994.0,0.282]
[1728481620932,0.00084,62002.0,61994.0,0.282]
[1728481621142,0.00084,62002.0,62001.0,0.360704]
[1728481621331,0.3608,62008.0,62001.0,0.360704]
[1728481621332,0.3608,62008.0,62007.0,0.080696]
[1728481621640,0.3608,62008.0,62007.0,0.360696]
[1728481621641,0.06,62008.0,62007.0,0.360696]
[1728481622140,0.06,62008.0,62007.0,0.080696]
[1728481622424,0.06,62008.0,62007.0,0.360696]
[1728481622612,0.06,62008.0,62007.0,0.080696]
[1728481622824,0.06,62008.0,62003.0,0.3608]
[1728481622825,0.06,62008.0,62006.0,0.080696]
[1728481623718,0.0807,62004.0,62003.0,0.3608]
[1728481624317,0.080702,62003.0,62000.0,0.0549]
[1728481624631,0.360704,62001.0,62000.0,0.0549]
[1728481624921,0.480704,62001.0,62000.0,0.0549]
[1728481625534,0.964584,62001.0,62000.0,0.0549]
[1728481626862,0.080723,61987.0,61982.0,0.3608]
[1728481627046,0.3608,61995.0,61994.0,0.080712]
[1728481627345,0.1,61995.0,61994.0,0.080713]
[1728481627631,0.080709,61997.0,61994.0,0.080712]
[1728481628341,0.080718,61990.0,61988.0,0.44152]
[1728481628642,0.28,61995.0,61988.0,0.3608]
[1728481628829,0.470712,61995.0,61991.0,0.080716]
[1728481629156,0.080715,61993.0,61988.0,0.080721]
[1728481629338,0.4608,61993.0,61988.0,0.080721]
[1728481629723,0.4608,61993.0,61983.0,0.3608]
[1728481629924,0.28,61989.0,61983.0,0.3608]
[1728481630141,0.080723,61986.0,61983.0,0.3608]
[1728481630450,0.28,61984.0,61975.0,0.07432031]
[1728481630628,0.080728,61983.0,61980.0,0.0969]
[1728481630843,0.28,61984.0,61980.0,0.01617]
[1728481631027,0.1,61984.0,61983.0,0.082727]
[1728481631653,0.080709,61997.0,61992.0,0.080716]
[1728481631889,0.080707,61999.0,61992.0,0.080716]
[1728481632041,0.00242051,62000.0,61997.0,0.080709]
[1728481633344,0.00242051,62000.0,61999.0,0.080706]
[1728481633737,0.00242051,62000.0,61999.0,0.04769335]
[1728481634643,0.07548683,62000.0,61999.0,0.04769335]
[1728481635143,0.07748683,62000.0,61999.0,0.04769335]
[1728481635342,0.07716789,62000.0,61999.0,0.04769335]
[1728481635742,0.07716789,62000.0,61999.0,0.05269335]
[1728481636533,0.00442051,62000.0,61999.0,0.05269335]
[1728481636737,0.12671681,62000.0,61999.0,0.05269335]
[1728481636931,0.12471681,62000.0,61999.0,0.05269335]
[1728481637131,0.12471681,62000.0,61999.0,0.05169335]
[1728481637339,0.12471681,62000.0,61999.0,0.05469335]
[1728481637546,0.23471681,62000.0,61999.0,0.05469335]
[1728481637748,0.23471681,62000.0,61999.0,0.05069335]
[1728481637945,0.12471681,62000.0,61999.0,0.05269335]
[1728481638747,0.12471681,62000.0,61999.0,0.05069335]
[1728481638937,0.12471681,62000.0,61999.0,0.05269335]
[1728481639540,0.96622181,62000.0,61999.0,0.005]
[1728481640177,0.68622181,62000.0,61999.0,0.005]
[1728481640358,0.68622181,62000.0,61999.0,0.006]
[1728481640359,0.12471681,62000.0,61999.0,0.006]
[1728481640543,0.12471681,62000.0,61999.0,0.086706]
[1728481640842,0.12471681,62000.0,61999.0,0.089706]
[1728481641041,0.23471681,62000.0,61999.0,0.089706]
[1728481641236,0.31542181,62000.0,61999.0,0.003]
[1728481641742,0.080714,61994.0,61992.0,0.441514]
[1728481641951,0.31328416,61993.0,61980.0,0.08607]
[1728481642172,0.28,61988.0,61980.0,0.08607]
[1728481642370,0.03328416,61987.0,61980.0,0.44687]
[1728481642552,0.03328416,61986.0,61980.0,0.44687]
[1728481642736,0.080712,61995.0,61980.0,0.44687]
[1728481642737,0.080708,61998.0,61985.0,0.6408]
[1728481642949,0.080715,61993.0,61992.0,0.080715]
[1728481643137,0.14294392,61993.0,61992.0,0.080715]
[1728481643947,0.22365792,61993.0,61992.0,0.080715]
[1728481644247,0.22365792,61993.0,61992.0,0.083715]
[1728481645152,0.22365792,61993.0,61992.0,0.087715]
[1728481645378,0.22365792,61993.0,61992.0,0.007]
[1728481645574,0.22365792,61993.0,61992.0,0.003]
[1728481646147,0.14294392,61993.0,61992.0,0.003]
[1728481646347,0.14294392,61993.0,61992.0,0.083716]
[1728481647548,0.18247915,61993.0,61992.0,0.080716]
[1728481647743,0.18347915,61993.0,61992.0,0.080716]
[1728481648539,0.18347915,61993.0,61992.0,0.083716]
[1728481648750,0.22465792,61993.0,61992.0,0.083716]
[1728481649451,0.22365792,61993.0,61992.0,0.005]
[1728481649725,0.14294392,61993.0,61992.0,0.005]
[1728481649964,0.14294392,61993.0,61992.0,0.085716]
[1728481650154,0.14294392,61993.0,61992.0,0.083716]
[1728481650455,0.14294392,61993.0,61992.0,0.082716]
[1728481650641,0.14294392,61993.0,61992.0,0.085716]
[1728481650842,0.14294392,61993.0,61992.0,0.005]
[1728481651046,0.22365792,61993.0,61992.0,0.003]
[1728481651358,0.22365792,61993.0,61992.0,0.083716]
[1728481651799,0.22365792,61993.0,61992.0,0.084716]
[1728481651953,0.14294392,61993.0,61992.0,0.084716]
[1728481652954,0.14294392,61993.0,61992.0,0.085716]
[1728481653446,0.14294392,61993.0,61992.0,0.082716]
[1728481653644,0.14294392,61993.0,61992.0,0.080716]
[1728481653885,0.14294392,61993.0,61992.0,0.082716]
[1728481654050,0.14294392,61993.0,61992.0,0.085716]
[1728481655558,0.14294392,61993.0,61992.0,0.083716]
[1728481656161,0.03294392,61993.0,61992.0,0.083716]
[1728481656365,0.00242051,62000.0,61992.0,0.085716]
[1728481656554,0.10242051,62000.0,61999.0,0.080706]
[1728481656856,0.22496672,62000.0,61999.0,0.080706]
[1728481657053,0.28286595,62000.0,61999.0,0.04800714]
[1728481657452,0.45974116,62000.0,61999.0,0.04800714]
[1728481657656,0.40184223,62000.0,61999.0,0.04800714]
[1728481657858,0.22496672,62000.0,61999.0,0.04800714]
[1728481658364,0.22496672,62000.0,61999.0,0.05000714]
[1728481659196,0.22496672,62000.0,61999.0,0.05500714]
[1728481659662,0.28286333,62000.0,61999.0,0.05500714]
[1728481660157,0.28286333,62000.0,61999.0,0.05600714]
[1728481660364,0.28286333,62000.0,61999.0,0.41680714]
[1728481660555,0.28274845,62000.0,61999.0,0.41680714]
[1728481660758,0.28274845,62000.0,61999.0,0.41480714]
[1728481661369,0.28274845,62000.0,61999.0,0.41580714]
[1728481662184,0.28274845,62000.0,61999.0,0.41680714]
[1728481662551,0.40182784,62000.0,61999.0,0.41680714]
[1728481662770,0.45972445,62000.0,61999.0,0.41680714]
[1728481662959,0.28274845,62000.0,61999.0,0.41680714]
[1728481663266,0.28274845,62000.0,61999.0,0.41280714]
[1728481663563,0.28274845,62000.0,61999.0,0.41480714]
[1728481663564,0.36345345,62000.0,61999.0,0.41480714]
[1728481663761,0.18312551,62000.0,61999.0,0.42180714]
[1728481663952,0.18312551,62000.0,61999.0,0.3738]
[1728481664170,0.21664509,62000.0,61999.0,0.006]
[1728481664384,0.21664509,62000.0,61999.0,0.011]
[1728481664670,0.21664509,62000.0,61999.0,0.281706]
[1728481664671,0.13594009,62000.0,61999.0,0.281706]
[1728481664891,0.13594009,62000.0,61999.0,0.637506]
[1728481665078,0.13594009,62000.0,61999.0,0.643506]
[1728481665474,0.13594009,62000.0,61999.0,0.637506]
[1728481665783,0.13594009,62000.0,61999.0,0.635506]
[1728481666554,0.13594009,62000.0,61999.0,0.636506]
[1728481667163,0.13594009,62000.0,61999.0,0.643506]
[1728481667386,0.03351958,62000.0,61999.0,1.727386]
[1728481667772,0.30564027,62018.0,62013.0,0.080688]
[1728481668009,0.07311041,62017.0,62016.0,0.080684]
[1728481668280,0.07311041,62017.0,62016.0,0.270684]
[1728481669666,0.0355846,62017.0,62016.0,0.271684]
[1728481669867,0.002,62017.0,62016.0,0.271684]
[1728481670258,0.002,62017.0,62016.0,0.272684]
[1728481671193,0.0024194,62021.0,62020.0,0.080679]
[1728481671377,0.0024194,62021.0,62020.0,0.631479]
[1728481671761,0.09147443,62021.0,62020.0,0.50227841]
[1728481671957,0.09147443,62021.0,62020.0,0.58295741]
[1728481672364,0.09247443,62021.0,62020.0,0.58395741]
[1728481673069,0.04193913,62021.0,62020.0,0.58295741]
[1728481673276,0.04193913,62021.0,62020.0,0.58395741]
[1728481673277,0.04393913,62021.0,62020.0,0.58395741]
[1728481673667,0.14883625,62021.0,62020.0,0.58395741]
[1728481673863,0.09346922,62021.0,62020.0,0.58495741]
[1728481674468,0.23788607,62021.0,62020.0,0.58495741]
[1728481674673,0.04393913,62021.0,62020.0,0.58495741]
[1728481674882,0.04393913,62021.0,62020.0,0.60112741]
[1728481675180,0.04193913,62021.0,62020.0,0.60012741]
[1728481675566,0.04193913,62021.0,62020.0,0.59912741]
[1728481675864,0.03951973,62021.0,62020.0,0.59912741]
[1728481677476,0.12019773,62021.0,62020.0,0.59912741]
[1728481677971,0.15315565,62021.0,62020.0,0.59912741]
[1728481678172,0.19247765,62021.0,62020.0,0.59912741]
[1728481678471,0.27315565,62021.0,62020.0,0.59912741]
[1728481678669,0.19247765,62021.0,62020.0,0.59912741]
[1728481678869,0.12,62021.0,62020.0,0.59912741]
[1728481679208,0.200678,62021.0,62020.0,0.59912741]
[1728481679365,0.12,62021.0,62020.0,0.59912741]
[1728481680273,0.12,62021.0,62020.0,0.61312299]
[1728481681785,0.200678,62021.0,62020.0,0.40912741]
[1728481686285,0.200678,62021.0,62020.0,0.32844841]
[1728481686477,0.200678,62021.0,62020.0,0.01617]
[1728481686684,0.080688,62015.0,62014.0,0.080686]
[1728481686894,0.2959,62028.0,62014.0,0.270686]
[1728481687109,0.2959,62028.0,62010.0,0.3608]
[1728481687110,0.11,62025.0,62024.0,0.080674]
[1728481687293,0.11,62025.0,62024.0,0.270674]
[1728481687590,0.14286714,62025.0,62024.0,0.270674]
[1728481688271,0.11,62025.0,62024.0,0.080674]
[1728481688478,0.14245211,62025.0,62021.0,0.3608]
[1728481688681,0.03245211,62024.0,62022.0,0.080677]
[1728481688874,0.03245211,62023.0,62022.0,0.080677]
[1728481689080,0.14245211,62023.0,62022.0,0.080677]
[1728481692488,0.14245211,62023.0,62021.0,0.3608]
[1728481692675,0.11312911,62022.0,62021.0,0.3608]
[1728481692985,0.080679,62021.0,62019.0,0.08068]
[1728481693186,0.03245211,62020.0,62019.0,0.08068]
[1728481693396,0.03245211,62020.0,62010.0,0.55244]
[1728481693397,0.22575211,62020.0,62010.0,0.56642179]
[1728481693591,0.03245211,62019.0,62017.0,0.080683]
[1728481693781,0.03245211,62019.0,62010.0,0.5508]
[1728481693782,0.12,62019.0,62010.0,0.5508]
[1728481693990,0.12,62019.0,62018.0,0.080682]
[1728481697295,0.153867,62030.0,62027.0,0.08067]
[1728481697482,0.21165744,62028.0,62027.0,0.08067]
[1728481697983,0.22589461,62028.0,62027.0,0.08067]
[1728481698185,0.14245744,62028.0,62027.0,0.08067]
[1728481698585,0.14245744,62028.0,62027.0,0.08167]
[1728481699389,0.14245744,62028.0,62027.0,0.08267]
[1728481702197,0.11,62028.0,62027.0,0.08267]
[1728481702388,0.14275407,62028.0,62027.0,0.08267]
[1728481702579,0.11,62028.0,62027.0,0.08267]
[1728481705997,0.14273366,62028.0,62027.0,0.08267]
[1728481707699,0.22340266,62028.0,62027.0,0.08267]
[1728481708105,0.22340266,62028.0,62027.0,0.002]
[1728481708402,1.49704266,62028.0,62027.0,0.002]
[1728481708595,0.89704266,62028.0,62027.0,0.002]
[1728481708787,0.14273366,62028.0,62027.0,0.08267]
[1728481708988,0.27056942,62028.0,62027.0,0.08267]
[1728481709185,0.23177627,62028.0,62027.0,0.08267]
[1728481709793,0.27056942,62028.0,62027.0,0.08267]
[1728481710031,0.23177627,62028.0,62027.0,0.08267]
[1728481711795,0.18228481,62028.0,62027.0,0.08267]
[1728481711987,0.23180913,62028.0,62027.0,0.08267]
[1728481712391,0.31247813,62028.0,62027.0,0.08267]
[1728481712997,0.26295381,62028.0,62027.0,0.08267]
[1728481713297,0.26292196,62028.0,62027.0,0.08267]
[1728481713803,0.31244747,62028.0,62027.0,0.002]
[1728481714250,1.31541847,62028.0,62013.0,0.3608]
[1728481714420,0.080685,62017.0,62016.0,0.080683]
[1728481714614,0.26293796,62017.0,62016.0,0.080683]
[1728481714997,0.18225296,62017.0,62016.0,0.080683]
[1728481715698,0.18225296,62017.0,62016.0,0.082683]
[1728481716795,0.23178585,62017.0,62016.0,0.082683]
[1728481717005,0.14274185,62017.0,62016.0,0.083683]
[1728481717521,0.11,62017.0,62016.0,0.083683]
[1728481717812,0.190683,62017.0,62016.0,0.083683]
[1728481718106,0.11,62017.0,62016.0,0.273683]
[1728481718429,0.37506881,62032.0,62017.0,0.080683]
[1728481718703,0.03258179,62031.0,62030.0,0.080666]
[1728481718899,0.15258179,62031.0,62030.0,0.080666]
[1728481720003,0.15258179,62031.0,62030.0,0.081666]
[1728481720301,0.23324679,62031.0,62030.0,0.081666]
[1728481721210,0.23424679,62031.0,62030.0,0.082666]
[1728481721531,0.15358179,62031.0,62030.0,0.082666]
[1728481723902,0.30048488,62031.0,62029.0,0.16460126]
[1728481724210,0.17948488,62030.0,62029.0,0.080667]
[1728481724516,0.29948488,62030.0,62029.0,0.080667]
[1728481725098,0.29948488,62030.0,62029.0,0.082667]
[1728481725807,0.29948488,62030.0,62029.0,0.081667]
[1728481726007,0.30048488,62030.0,62029.0,0.272667]
[1728481726228,0.12261649,62030.0,62029.0,0.756307]
[1728481726412,0.0730925,62030.0,62029.0,0.756307]
[1728481727904,0.0740925,62030.0,62029.0,0.755307]
[1728481728100,0.0750925,62030.0,62029.0,0.754307]
[1728481730118,0.24461037,62030.0,62029.0,0.080667]
[1728481730307,0.36462504,62030.0,62029.0,0.080667]
[1728481730503,0.32527637,62030.0,62029.0,0.080667]
[1728481731810,0.32527637,62030.0,62025.0,0.01617]
[1728481731811,0.40545618,62030.0,62025.0,0.01617]
[1728481732003,0.080671,62027.0,62026.0,0.080671]
[1728481732309,0.180671,62027.0,62026.0,0.080671]
[1728481735007,0.57326806,62027.0,62025.0,0.01617]
[1728481735308,0.58259706,62026.0,62013.0,0.441488]
[1728481735513,0.58259706,62026.0,62018.0,0.080678]
[1728481735514,0.080682,62019.0,62018.0,0.080678]
[1728481735821,0.11,62019.0,62018.0,0.080678]
[1728481736620,0.080676,62023.0,62022.0,0.080677]
[1728481736801,0.190676,62023.0,62022.0,0.080677]
[1728481737310,0.22210588,62023.0,62022.0,0.080677]
[1728481737712,0.11,62023.0,62022.0,0.080677]
[1728481737938,0.002,62027.0,62026.0,0.080671]
[1728481738130,0.002,62027.0,62026.0,0.441471]
[1728481738911,0.231261,62035.0,62034.0,0.080661]
[1728481739211,0.36312506,62035.0,62034.0,0.080661]
[1728481739411,0.331261,62035.0,62034.0,0.080661]
[1728481739608,0.2506,62035.0,62034.0,0.080661]
[1728481739812,0.1748,62035.0,62034.0,0.080661]
[1728481740010,0.1,62035.0,62034.0,0.080661]
[1728481740207,0.00241852,62043.0,62034.0,0.080661]
[1728481740423,0.03197575,62042.0,62041.0,0.19]
[1728481740606,0.1,62042.0,62041.0,0.270652]
[1728481741116,0.1,62042.0,62041.0,0.080652]
[1728481741568,0.180651,62042.0,62041.0,0.080652]
[1728481741734,0.21285807,62042.0,62041.0,0.080652]
[1728481742018,0.13220707,62042.0,62041.0,0.080652]
[1728481742212,0.21285807,62042.0,62041.0,0.081652]
[1728481742412,0.1,62042.0,62041.0,0.081652]
[1728481742612,0.101,62042.0,62041.0,0.082652]
[1728481742808,0.181651,62042.0,62041.0,0.082652]
[1728481744709,0.101,62042.0,62041.0,0.082652]
[1728481747123,0.28016449,62042.0,62041.0,0.05036729]
[1728481747310,0.28016469,62042.0,62041.0,0.05036729]
[1728481747794,0.94084448,62042.0,62041.0,0.002]
[1728481747959,0.94084448,62042.0,62031.0,0.3608]
[1728481747960,0.080658,62036.0,62035.0,0.080659]
[1728481748116,0.54982269,62036.0,62035.0,0.080659]
[1728481748316,0.46916469,62036.0,62035.0,0.080659]
[1728481748511,0.54982269,62036.0,62035.0,0.080659]
[1728481749228,0.55182269,62036.0,62035.0,0.081659]
[1728481750230,0.55182269,62036.0,62035.0,0.001]
[1728481750433,1.63542269,62036.0,62026.0,0.3608]
[1728481750762,0.24537772,62035.0,62034.0,0.080661]
[1728481750965,0.29916469,62035.0,62034.0,0.080661]
[1728481752024,0.30216469,62035.0,62034.0,0.081661]
[1728481752427,0.30516469,62035.0,62034.0,0.082661]
[1728481754041,0.15828348,62035.0,62034.0,0.082661]
[1728481755627,0.126,62035.0,62034.0,0.082661]
[1728481755826,0.15795272,62035.0,62034.0,0.082661]
[1728481756545,0.23861272,62035.0,62034.0,0.082661]
[1728481757137,0.23859457,62035.0,62034.0,0.082661]
[1728481757348,0.46810267,62035.0,62034.0,0.082661]
[1728481757521,0.42859457,62035.0,62034.0,0.082661]
[1728481759045,0.42859457,62035.0,62034.0,0.002]
[1728481759932,0.46810374,62035.0,62034.0,0.002]
[1728481760237,0.51762786,62035.0,62034.0,0.002]
[1728481760537,1.55170374,62035.0,62034.0,0.002]
[1728481760941,1.06810374,62035.0,62034.0,0.002]
[1728481761256,0.30483818,62035.0,62032.0,0.06282656]
[1728481761461,0.17883818,62034.0,62033.0,0.270662]
[1728481761744,0.28883818,62034.0,62033.0,0.080662]
[1728481762936,0.29083818,62034.0,62033.0,0.081662]
[1728481763136,0.29083818,62034.0,62033.0,0.271662]
[1728481763440,0.23296873,62034.0,62033.0,0.271662]
[1728481763633,0.39409828,62034.0,62033.0,0.271662]
[1728481764362,0.12696873,62034.0,62033.0,0.272662]
[1728481764661,0.01076873,62034.0,62033.0,0.272662]
[1728481765434,0.14895413,62034.0,62033.0,0.272662]
[1728481765635,0.004,62034.0,62033.0,0.272662]
[1728481766140,0.1489775,62034.0,62033.0,0.272662]
[1728481766837,0.1489775,62034.0,62033.0,0.28681212]
[1728481767238,0.004,62034.0,62033.0,0.28681212]
[1728481776257,0.0746597,62034.0,62033.0,0.28681212]
[1728481776745,0.07465929,62034.0,62033.0,0.28681212]
[1728481776952,0.44532077,62034.0,62033.0,0.002]
[1728481777159,0.65596863,62034.0,62033.0,0.002]
[1728481777351,0.49483908,62034.0,62033.0,0.002]
[1728481777555,0.49483908,62034.0,62033.0,0.00128257]
[1728481777746,0.67210167,62034.0,62033.0,0.00128257]
[1728481777979,0.67210167,62034.0,62024.0,0.080674]
[1728481777980,0.08067,62027.0,62024.0,0.080674]
[1728481778177,0.24172707,62025.0,62024.0,0.080674]
[1728481778366,0.080677,62022.0,62021.0,0.00241849]
[1728481778670,0.380677,62022.0,62021.0,0.00241849]
[1728481778854,0.08068,62019.0,62018.0,0.01613]
[1728481779066,0.080692,62010.0,62009.0,0.3608]
[1728481779259,0.33564352,62010.0,62009.0,0.441493]
[1728481779450,0.03115868,62010.0,62009.0,0.6452568]
[1728481779654,0.080683,62018.0,62009.0,0.6452568]
[1728481779844,0.15137598,62017.0,62009.0,0.5645638]
[1728481780059,0.07069198,62016.0,62015.0,0.080686]
[1728481780443,0.03117288,62016.0,62015.0,0.080686]
[1728481781467,0.03117107,62016.0,62015.0,0.085686]
[1728481781784,0.03951674,62016.0,62015.0,0.085686]
[1728481781956,0.27138805,62016.0,62015.0,0.005]
[1728481782176,0.38240479,62016.0,62015.0,0.005]
[1728481782706,0.54346203,62016.0,62015.0,0.011]
[1728481782956,0.30172079,62016.0,62012.0,0.080689]
[1728481783165,0.080688,62013.0,62012.0,0.080689]
[1728481783354,0.080691,62011.0,62009.0,0.0137638]
[1728481783553,0.080693,62009.0,62008.0,0.3608]
[1728481783857,0.27138893,62009.0,62008.0,0.3608]
[1728481784048,0.080699,62005.0,62004.0,0.01613]
[1728481784274,0.270699,62005.0,62004.0,0.01613]
[1728481784652,0.390699,62005.0,62004.0,0.01613]
[1728481785265,0.200699,62005.0,62004.0,0.01613]
[1728481785475,0.12,62005.0,62004.0,0.09683]
[1728481785854,0.12,62005.0,62004.0,0.10683]
[1728481786359,0.12,62005.0,62004.0,0.11583]
[1728481786574,0.12,62005.0,62004.0,0.10583]
[1728481786747,0.12,62005.0,62004.0,0.11383]
[1728481787148,0.12,62005.0,62004.0,0.10883]
[1728481788053,0.12,62005.0,62004.0,0.11183]
[1728481788251,0.12,62005.0,62004.0,0.10383]
[1728481788457,0.12,62005.0,62004.0,0.10883]
[1728481788966,0.12,62005.0,62004.0,0.11183]
[1728481792975,0.0749,62010.0,62009.0,0.080693]